bitfinex-derivatives/quotes_BNBF0:USTF0_20250413
["timestamp","ask_amount","ask_price","bid_price","bid_amount"]
[1744503706591,0.30823837,597.08,596.18,6.823]
[1744503706791,0.30823837,597.07,596.18,6.823]
[1744503707091,0.30823837,597.06,596.18,6.823]
[1744503707288,0.30823837,597.05,596.18,6.823]
[1744503707487,1.27119983,596.98,596.18,6.823]
[1744503707886,0.3082374,596.97,596.18,6.823]
[1744503708192,0.3082374,596.96,596.18,6.823]
[1744503708387,0.3082374,596.95,596.18,6.823]
[1744503708593,0.3082374,596.94,596.18,6.823]
[1744503708895,0.3082374,596.93,596.18,6.823]
[1744503709094,0.3082374,596.92,596.18,6.823]
[1744503709295,0.3082374,596.97,596.18,6.823]
[1744503709493,0.3082374,596.96,596.18,6.823]
[1744503709689,0.3082374,596.97,596.18,6.823]
[1744503709893,0.3082374,596.96,596.18,6.823]
[1744503710095,1.27119983,596.95,596.18,6.823]
[1744503710294,0.3082374,596.94,596.18,6.823]
[1744503710696,0.29183124,596.93,596.18,6.823]
[1744503710996,0.3082374,596.92,596.18,6.823]
[1744503712697,0.3082374,596.94,596.18,6.823]
[1744503713193,0.3082374,597.13,596.18,6.823]
[1744503713397,0.3082374,597.12,596.18,6.823]
[1744503713595,0.3082374,597.11,596.18,6.823]
[1744503713801,0.29180799,597.12,596.18,6.823]
[1744503713997,0.3082374,597.1,596.18,6.823]
[1744503714196,0.3082374,597.09,596.18,6.823]
[1744503714399,0.3082374,597.11,596.18,6.823]
[1744503714697,0.3082374,597.1,596.18,6.823]
[1744503714894,0.3082374,597.11,596.18,6.823]
[1744503715800,0.3082374,597.1,596.18,6.823]
[1744503715996,0.3082374,597.13,596.18,6.823]
[1744503716201,0.3082374,597.12,596.18,6.823]
[1744503716500,0.3082374,597.11,596.18,6.823]
[1744503716701,0.29180799,597.11,596.18,6.823]
[1744503716898,0.3082374,597.1,596.18,6.823]
[1744503718602,1.27119983,597.18,596.18,6.823]
[1744503718805,0.29181166,597.09,596.18,6.823]
[1744503719103,0.30826075,597.08,596.18,6.823]
[1744503719603,0.30826075,597.08,596.18,6.192]
[1744503720301,0.30826075,597.07,596.18,6.192]
[1744503720503,0.30826075,597.06,596.18,6.192]
[1744503720703,0.30826075,597.05,596.18,6.192]
[1744503720905,0.30826075,597.04,596.18,6.192]
[1744503721106,0.30826075,597.03,596.18,6.192]
[1744503721304,0.30826075,597.02,596.18,6.192]
[1744503721499,0.30826075,597.01,596.18,6.192]
[1744503721702,0.29181411,597.01,596.18,6.192]
[1744503721904,0.30826075,597.0,596.18,6.192]
[1744503724810,0.29184593,596.99,596.18,6.192]
[1744503725205,0.30826075,596.98,596.18,6.192]
[1744503725406,0.30829148,596.97,596.18,6.192]
[1744503725609,0.30829148,596.98,596.18,6.192]
[1744503727608,0.30829148,597.13,596.18,6.192]
[1744503727807,0.29184837,596.97,596.18,6.192]
[1744503728013,0.30829148,596.96,596.18,6.192]
[1744503728212,0.30829148,596.95,596.18,6.192]
[1744503728410,0.33494105,597.12,596.18,6.192]
[1744503728610,0.30830124,597.11,596.18,6.192]
[1744503728810,0.29183246,596.94,596.18,6.192]
[1744503729010,0.30830124,596.93,596.18,6.192]
[1744503729206,0.30830124,597.09,596.18,6.192]
[1744503729412,0.33496348,597.08,596.18,6.192]
[1744503729611,0.30830124,597.07,596.18,6.192]
[1744503729815,0.3349747,597.06,596.18,6.192]
[1744503730015,0.30830124,597.05,596.18,6.192]
[1744503730216,0.64328155,597.05,596.18,6.192]
[1744503730516,0.30830124,597.04,596.18,6.192]
[1744503731416,0.62681889,597.05,596.18,6.192]
[1744503731614,0.30829918,597.04,596.18,6.192]
[1744503733017,0.62681889,597.05,596.18,6.192]
[1744503733319,0.3083188,597.04,596.18,6.192]
[1744503733616,0.3083188,597.03,596.18,6.192]
[1744503733814,0.3083188,597.02,596.18,6.192]
[1744503734018,0.3083188,597.01,596.18,6.192]
[1744503734211,0.3083188,597.0,596.18,6.192]
[1744503734413,0.3083188,596.99,596.18,6.192]
[1744503734612,0.3083188,596.98,596.18,6.192]
[1744503734817,0.64334401,596.97,596.18,6.192]
[1744503735017,0.64334962,596.96,596.18,6.192]
[1744503735218,0.3083188,596.95,596.18,6.192]
[1744503737711,0.29186918,596.94,596.18,6.192]
[1744503737916,0.3083188,596.93,596.18,6.192]
[1744503739120,0.29186918,596.94,596.18,6.192]
[1744503739323,0.30833193,596.93,596.18,6.192]
[1744503739721,0.30833193,596.95,596.18,6.192]
[1744503739918,0.30833193,596.94,596.18,6.192]
[1744503740221,0.30833193,596.93,596.18,6.192]
[1744503740421,0.30833193,596.92,596.18,6.192]
[1744503740721,0.30833193,596.91,596.18,6.192]
[1744503741622,0.30833193,596.9,596.18,6.192]
[1744503741825,0.30833193,596.89,596.18,6.192]
[1744503742124,0.30833193,596.88,596.18,6.192]
[1744503742427,0.30833193,596.87,596.18,6.192]
[1744503742628,0.30833193,596.86,596.18,6.192]
[1744503742821,0.30833193,596.85,596.18,6.192]
[1744503743021,0.30833193,596.84,596.18,6.192]
[1744503743226,0.30833193,596.83,596.18,6.192]
[1744503743430,0.30833193,596.82,596.18,6.192]
[1744503743728,0.30833193,596.81,596.18,6.192]
[1744503743928,0.30833713,596.8,596.18,6.192]
[1744503744127,0.30833713,596.79,596.18,6.192]
[1744503744328,0.30833713,596.78,596.18,6.192]
[1744503744528,0.30833713,596.77,596.18,6.192]
[1744503744723,0.30833713,596.76,596.18,6.192]
[1744503744924,0.30833713,596.75,596.18,6.192]
[1744503745126,0.30833713,596.74,596.18,6.192]
[1744503745325,1.27119983,596.81,596.18,6.192]
[1744503745524,0.30833798,596.8,596.18,6.192]
[1744503745728,0.30833798,596.79,596.18,6.192]
[1744503746029,0.30833798,596.78,596.18,6.192]
[1744503746230,0.30833798,596.77,596.18,6.192]
[1744503746531,0.30833798,596.76,596.18,6.192]
[1744503746727,0.30833798,596.75,596.18,6.192]
[1744503746931,0.30833798,596.74,596.18,6.192]
[1744503747133,0.30833798,596.73,596.18,6.192]
[1744503747333,0.30833798,596.72,596.18,6.192]
[1744503747629,0.30833798,596.71,596.18,6.192]
[1744503747832,0.30833798,596.79,596.18,6.192]
[1744503748033,0.30833798,596.78,596.18,6.192]
[1744503748233,0.30833798,596.79,596.18,6.192]
[1744503748529,1.27119983,596.81,596.18,6.192]
[1744503748726,0.30833325,596.8,596.18,6.192]
[1744503748931,0.29188876,596.78,596.18,6.192]
[1744503749133,0.30833325,596.77,596.18,6.192]
[1744503750234,0.30833325,596.77,596.18,6.991]
[1744503751637,1.27119983,597.11,596.18,6.991]
[1744503751838,0.29186918,596.76,596.18,6.991]
[1744503752139,0.30828659,596.75,596.18,6.991]
[1744503752437,0.30828659,596.74,596.18,6.991]
[1744503752638,0.30828659,596.95,596.18,6.991]
[1744503752938,0.29184715,596.73,596.18,6.991]
[1744503753341,0.3082874,596.72,596.18,6.991]
[1744503753539,0.3082874,596.95,596.18,6.991]
[1744503753840,0.3082874,596.94,596.18,6.991]
[1744503754142,0.3082874,596.93,596.18,6.991]
[1744503754337,0.3082874,596.95,596.18,6.991]
[1744503754535,0.29184715,596.93,596.18,6.991]
[1744503754935,0.30828552,596.92,596.18,6.991]
[1744503756238,0.29184715,596.93,596.18,6.991]
[1744503756542,0.30828843,596.92,596.18,6.991]
[1744503756842,0.30828843,596.91,596.18,6.991]
[1744503757042,0.30828843,596.9,596.18,6.991]
[1744503757245,0.30828843,596.92,596.18,6.991]
[1744503757742,0.60013925,596.91,596.18,6.991]
[1744503757943,0.30828843,596.9,596.18,6.991]
[1744503760844,0.6001417,596.89,596.18,6.991]
[1744503761045,0.29185327,596.89,596.18,6.991]
[1744503761245,0.30828527,596.88,596.18,6.991]
[1744503761741,0.30828527,596.88,596.18,4.736]
[1744503762645,0.29185327,596.89,596.18,4.736]
[1744503762847,0.30828835,596.88,596.18,4.736]
[1744503763746,0.30828835,596.95,596.18,4.736]
[1744503764045,0.30828835,596.94,596.18,5.595]
[1744503764245,1.27119983,597.1,596.18,5.595]
[1744503764446,0.30828434,596.95,596.18,5.595]
[1744503764947,0.60011436,596.95,596.18,5.595]
[1744503765149,0.30828434,596.94,596.18,5.595]
[1744503767151,0.30828434,596.93,596.18,5.595]
[1744503767551,0.30828434,596.92,596.18,5.595]
[1744503767747,0.30828434,596.91,596.18,5.595]
[1744503767947,0.30828434,596.9,596.18,5.595]
[1744503768352,0.30828434,596.89,596.18,5.595]
[1744503768552,0.30828434,596.88,596.18,5.595]
[1744503768753,0.29183002,596.95,596.18,5.595]
[1744503768754,0.30828434,596.87,596.18,6.396]
[1744503768953,0.30828434,596.86,596.18,6.396]
[1744503769154,0.30828434,596.85,596.18,6.396]
[1744503769357,0.30828434,596.84,596.18,6.396]
[1744503769654,0.30828434,596.83,596.18,6.396]
[1744503769851,0.30828434,596.82,596.18,6.396]
[1744503770052,0.30828434,596.81,596.18,6.396]
[1744503770253,0.30828434,596.82,596.18,6.977]
[1744503770452,0.30828434,596.81,596.18,6.977]
[1744503770652,0.30828434,596.82,596.18,6.977]
[1744503770950,0.30828434,596.81,596.18,6.977]
[1744503771152,0.30828434,596.8,596.18,6.977]
[1744503771350,0.30828434,596.82,596.18,6.977]
[1744503771957,0.29186551,596.83,596.18,6.977]
[1744503772158,0.30831093,596.82,596.18,6.977]
[1744503772659,1.27119983,596.92,596.18,6.977]
[1744503772660,0.60019112,596.81,596.18,6.977]
[1744503772959,0.30831093,596.8,596.18,6.977]
[1744503775052,0.29188019,596.81,596.18,6.977]
[1744503775258,0.30831158,596.8,596.18,6.977]
[1744503775961,0.30831158,596.79,596.18,6.977]
[1744503776256,0.30831158,596.78,596.18,6.977]
[1744503776555,0.30831158,596.77,596.18,6.977]
[1744503776761,0.29186795,596.77,596.18,6.977]
[1744503777061,0.30831158,596.76,596.18,6.977]
[1744503778662,0.30831158,596.87,596.18,6.977]
[1744503778961,0.30831158,596.86,596.18,6.977]
[1744503779161,0.30831158,596.85,596.18,6.977]
[1744503779361,0.30831158,596.84,596.18,6.977]
[1744503779562,0.30831158,596.83,596.18,6.977]
[1744503779763,0.29187407,596.84,596.18,6.977]
[1744503779963,0.30830769,596.83,596.18,6.977]
[1744503780758,0.30830769,596.82,596.18,6.977]
[1744503780963,0.30830769,596.83,596.18,6.977]
[1744503781163,0.30830769,596.81,596.18,6.977]
[1744503781357,0.30830769,596.82,596.18,6.977]
[1744503781559,1.27119983,596.88,596.18,6.977]
[1744503781560,0.30830769,596.81,596.18,6.977]
[1744503781759,0.30830769,596.8,596.18,6.977]
[1744503781959,0.30830769,596.87,596.18,6.977]
[1744503782161,0.30830769,596.86,596.18,6.977]
[1744503782366,0.30830769,596.87,596.18,6.977]
[1744503782766,0.29187407,596.85,596.18,6.977]
[1744503783066,0.30830769,596.84,596.18,6.977]
[1744503784768,0.30830769,596.95,596.18,6.977]
[1744503785669,0.33503082,596.96,596.18,6.977]
[1744503785867,0.29186428,596.94,596.18,6.977]
[1744503786068,0.30831745,596.93,596.18,6.977]
[1744503790372,0.29186428,596.94,596.18,6.977]
[1744503790572,0.30831561,596.93,596.18,6.977]
[1744503790772,0.30831561,596.95,596.18,6.977]
[1744503791067,0.30831561,596.94,596.18,6.977]
[1744503791272,0.30831561,596.95,596.18,6.977]
[1744503791472,0.30831561,596.94,596.18,6.977]
[1744503791772,0.30831561,596.93,596.18,6.977]
[1744503791973,0.29186428,596.94,596.18,6.977]
[1744503792168,0.30831654,596.93,596.18,6.977]
[1744503793675,0.30832828,596.92,596.18,6.977]
[1744503793876,0.29186428,596.92,596.18,6.977]
[1744503794071,0.30832828,596.91,596.18,6.977]
[1744503795071,0.29186428,596.92,596.18,6.977]
[1744503795276,0.30833227,596.91,596.18,6.977]
[1744503796671,0.33503082,596.96,596.18,6.977]
[1744503796872,0.29186428,596.9,596.18,6.977]
[1744503797074,0.30833615,596.89,596.18,6.977]
[1744503798279,0.29186428,596.9,596.18,6.977]
[1744503798478,0.30833588,596.89,596.18,6.977]
[1744503801382,0.29186428,596.9,596.18,6.977]
[1744503801581,0.3083475,596.89,596.18,6.977]
[1744503801880,0.33507572,596.88,596.18,6.977]
[1744503802074,0.3083475,596.87,596.18,6.977]
[1744503802376,0.33508695,596.86,596.18,6.977]
[1744503802581,0.3083475,596.85,596.18,6.977]
[1744503802978,0.60025708,596.85,596.18,6.977]
[1744503803178,0.3083475,596.84,596.18,6.977]
[1744503805682,0.3083475,596.85,596.18,6.977]
[1744503805878,0.60025952,596.83,596.18,6.977]
[1744503806077,0.3083475,596.82,596.18,6.977]
[1744503808781,0.3083475,596.85,596.18,6.977]
[1744503808981,0.29188754,596.81,596.18,6.977]
[1744503809284,0.3083475,596.8,596.18,6.977]
[1744503810686,0.29188754,596.81,596.18,6.977]
[1744503810888,0.30833972,596.8,596.18,6.977]
[1744503811789,0.30833972,596.79,596.18,6.977]
[1744503812083,0.30833972,596.85,596.18,6.977]
[1744503812280,0.30833972,596.84,596.18,6.977]
[1744503812486,0.30833972,596.85,596.18,6.977]
[1744503812688,0.30833972,596.83,596.18,6.977]
[1744503812889,0.30833972,596.82,596.18,6.977]
[1744503814688,0.33508695,596.86,596.18,6.977]
[1744503814689,0.30833972,596.85,596.18,6.977]
[1744503814894,0.29188754,596.81,596.18,6.977]
[1744503815094,0.30833972,596.8,596.18,6.977]
[1744503818595,0.30833972,596.79,596.18,6.977]
[1744503818793,0.30833972,596.78,596.18,6.977]
[1744503818994,0.30833972,596.77,596.18,6.977]
[1744503819201,0.30833972,596.76,596.18,6.977]
[1744503819400,0.30833972,596.75,596.18,6.977]
[1744503819593,0.30833972,596.74,596.18,6.977]
[1744503819797,0.30833972,596.73,596.18,6.977]
[1744503819994,0.30833972,596.72,596.18,6.977]
[1744503820194,0.30833972,596.8,596.18,6.977]
[1744503820394,0.30833972,596.79,596.18,6.977]
[1744503820598,0.30833972,596.8,596.18,6.977]
[1744503820795,1.27119983,596.75,596.18,6.977]
[1744503821096,0.30833972,596.74,596.18,6.977]
[1744503821501,1.27119983,596.75,596.18,6.977]
[1744503821704,0.3083355,596.74,596.18,6.977]
[1744503821899,0.29189488,596.73,596.18,6.977]
[1744503822097,0.3083355,596.72,596.18,6.977]
[1744503823695,0.3083355,596.85,596.18,6.977]
[1744503824001,0.3083355,596.84,596.18,6.977]
[1744503824204,0.3083355,596.85,596.18,6.977]
[1744503824402,0.3083355,596.84,596.18,6.977]
[1744503824697,0.3083355,596.83,596.18,6.977]
[1744503824897,0.29188142,596.83,596.18,6.977]
[1744503825101,0.3083355,596.82,596.18,6.977]
[1744503826701,0.3083355,596.85,596.18,6.977]
[1744503826904,0.29188509,596.81,596.18,6.977]
[1744503827105,0.3083355,596.8,596.18,6.977]
[1744503827801,0.29188509,596.81,596.18,6.977]
[1744503828006,0.30833811,596.8,596.18,6.977]
[1744503829906,0.30833811,596.85,596.18,6.977]
[1744503830107,0.30833811,596.84,596.18,6.977]
[1744503830310,1.57953794,596.85,596.18,6.977]
[1744503830504,0.30833811,596.84,596.18,6.977]
[1744503830804,0.60022075,596.84,596.18,6.977]
[1744503831007,0.30833811,596.83,596.18,6.977]
[1744503832709,0.30833811,596.84,596.18,6.977]
[1744503832909,0.30833811,596.83,596.18,6.977]
[1744503833105,0.30833811,596.84,596.18,6.977]
[1744503833410,0.30833811,596.83,596.18,6.977]
[1744503833607,0.30833811,596.84,596.18,6.977]
[1744503833911,0.29188264,596.82,596.18,6.977]
[1744503834311,0.30833285,596.81,596.18,6.977]
[1744503835709,0.30833285,596.8,596.18,6.977]
[1744503835909,0.30833285,596.85,596.18,6.977]
[1744503836106,0.30833285,596.84,596.18,6.977]
[1744503836308,0.30833285,596.85,596.18,6.977]
[1744503836512,0.30833285,596.84,596.18,6.977]
[1744503836706,0.29188019,596.84,596.18,6.977]
[1744503836910,0.30833285,596.83,596.18,6.977]
[1744503838907,0.30833285,596.82,596.18,6.977]
[1744503839107,0.30833285,596.85,596.18,6.977]
[1744503839409,0.30833285,596.84,596.18,6.977]
[1744503839611,0.30833285,596.85,596.18,6.977]
[1744503839808,0.29188142,596.83,596.18,6.977]
[1744503840006,0.30833285,596.82,596.18,6.977]
[1744503840611,0.29188142,596.83,596.18,6.977]
[1744503840907,0.30831535,596.82,596.18,6.977]
[1744503841709,0.30831535,596.81,596.18,6.977]
[1744503841909,0.2918753,596.81,596.18,6.977]
[1744503842106,0.30831535,596.8,596.18,6.977]
[1744503844716,0.30831535,596.85,596.18,6.977]
[1744503844915,0.6001931,596.79,596.18,6.977]
[1744503845111,0.30832204,596.78,596.18,6.977]
[1744503847719,0.30832204,596.85,596.18,6.977]
[1744503848818,0.29187163,596.84,596.18,6.977]
[1744503849019,0.30832204,596.83,596.18,6.977]
[1744503849816,0.29187163,596.84,596.18,6.977]
[1744503850016,0.30832066,596.83,596.18,6.977]
[1744503850817,0.30832066,596.85,596.18,6.977]
[1744503851018,0.29187407,596.82,596.18,6.977]
[1744503851218,0.30832066,596.81,596.18,6.977]
[1744503851420,0.29187407,596.82,596.18,6.977]
[1744503851619,0.30832524,596.81,596.18,6.977]
[1744503851819,0.30832524,596.8,596.18,6.977]
[1744503852019,0.30832524,596.81,596.18,6.977]
[1744503852421,0.30832524,596.8,596.18,6.977]
[1744503852621,0.30832524,596.81,596.18,6.977]
[1744503852916,0.30832524,596.8,596.18,6.977]
[1744503853123,1.27119983,596.77,596.18,6.977]
[1744503853325,0.30832524,596.76,596.18,6.977]
[1744503853823,0.29188264,596.75,596.18,6.977]
[1744503854023,0.30832524,596.74,596.18,6.977]
[1744503856227,0.29188264,596.75,596.18,6.977]
[1744503856427,0.30832183,596.74,596.18,6.977]
[1744503857529,1.27119983,596.7,596.18,6.977]
[1744503857728,0.30832183,596.69,596.18,6.977]
[1744503860830,0.29189121,596.68,596.18,6.977]
[1744503861130,0.30832183,596.67,596.18,6.977]
[1744503864232,0.29189121,596.68,596.18,6.977]
[1744503864531,0.30830646,596.67,596.18,6.977]
[1744503865732,0.30830646,596.72,596.18,6.977]
[1744503865929,0.29189366,596.66,596.18,6.977]
[1744503866128,0.30830646,596.65,596.18,6.977]
[1744503867434,0.29189366,596.66,596.18,6.977]
[1744503867636,0.30830715,596.65,596.18,6.977]
[1744503868735,0.30830715,596.71,596.18,6.977]
[1744503868936,0.30830715,596.7,596.18,6.977]
[1744503869138,0.30830769,596.69,596.18,6.977]
[1744503869435,0.30830769,596.68,596.18,6.977]
[1744503869629,0.30830769,596.71,596.18,6.977]
[1744503869833,0.29188876,596.68,596.18,6.977]
[1744503870029,0.30830769,596.67,596.18,6.977]
[1744503871734,0.30830769,596.71,596.18,6.977]
[1744503872736,0.29188876,596.7,596.18,6.977]
[1744503872936,0.30830769,596.69,596.18,6.977]
[1744503873735,0.29188876,596.7,596.18,6.977]
[1744503874035,0.30830428,596.69,596.18,6.977]
[1744503874737,0.30830428,596.71,596.18,6.977]
[1744503874938,0.29189121,596.68,596.18,6.977]
[1744503875135,0.30830428,596.67,596.18,6.977]
[1744503876938,0.29189121,596.68,596.18,6.977]
[1744503877240,0.3082806,596.67,596.18,6.977]
[1744503877839,0.3082806,596.73,596.18,6.977]
[1744503878634,0.3082806,596.81,596.18,6.977]
[1744503878837,0.29187163,596.72,596.18,6.977]
[1744503879138,0.3082806,596.71,596.18,6.977]
[1744503879338,0.3082806,596.81,596.18,6.977]
[1744503880337,0.29186184,596.8,596.18,6.977]
[1744503880538,0.3082806,596.79,596.18,6.977]
[1744503880944,0.3082806,596.81,596.18,6.977]
[1744503881146,0.3082806,596.8,596.18,6.977]
[1744503881341,0.3082806,596.85,596.18,6.977]
[1744503881538,0.3082806,596.84,596.18,6.977]
[1744503881742,0.3082806,596.83,596.18,6.977]
[1744503881942,0.29185694,596.84,596.18,6.977]
[1744503882145,0.3082806,596.83,596.18,6.977]
[1744503883948,0.3082806,596.82,596.18,6.977]
[1744503884147,0.3082806,596.85,596.18,6.977]
[1744503884354,0.3082806,596.84,596.18,6.977]
[1744503884549,0.3082806,596.85,596.18,6.977]
[1744503884749,0.3082806,596.84,596.18,6.977]
[1744503884954,0.29185694,596.83,596.18,6.977]
[1744503885350,0.3082806,596.82,596.18,6.977]
[1744503886350,0.29185694,596.83,596.18,6.977]
[1744503886556,0.30828044,596.82,596.18,6.977]
[1744503886754,0.30828044,596.85,596.18,6.977]
[1744503887852,0.29185694,596.84,596.18,6.977]
[1744503888352,0.30827959,596.83,596.18,6.977]
[1744503889556,1.27119983,596.98,596.18,6.977]
[1744503889852,0.30828358,596.85,596.18,6.977]
[1744503890156,0.29185939,596.82,596.18,6.977]
[1744503890351,0.30828358,596.81,596.18,6.977]
[1744503892460,0.29185939,596.82,596.18,6.977]
[1744503892656,0.30828213,596.81,596.18,6.977]
[1744503892859,0.30828213,596.85,596.18,6.977]
[1744503893160,0.30828213,596.84,596.18,6.977]
[1744503893363,0.30828213,596.83,596.18,6.977]
[1744503893561,0.30828213,596.85,596.18,6.977]
[1744503893857,0.29185694,596.82,596.18,6.977]
[1744503894161,0.30828213,596.81,596.18,6.977]
[1744503895760,0.30828213,596.84,596.18,6.977]
[1744503895956,0.29186184,596.8,596.18,6.977]
[1744503896163,0.30828213,596.79,596.18,6.977]
[1744503898765,0.30828213,596.85,596.18,6.977]
[1744503898966,0.29186428,596.78,596.18,6.977]
[1744503899159,0.30828213,596.77,596.18,6.977]
[1744503899663,0.30828213,596.76,596.18,6.977]
[1744503899963,0.30828213,596.75,596.18,6.977]
[1744503900163,0.30828213,596.8,596.18,6.977]
[1744503900364,0.30828213,596.79,596.18,6.977]
[1744503900564,0.29186306,596.74,596.18,6.977]
[1744503900765,0.30828213,596.73,596.18,6.977]
[1744503901760,0.30828213,596.72,596.18,6.977]
[1744503901959,0.29187163,596.72,596.18,6.977]
[1744503902165,0.30828213,596.71,596.18,6.977]
[1744503906872,0.29187163,596.72,596.18,6.977]
[1744503907067,0.30828545,596.71,596.18,6.977]
[1744503908373,0.29187163,596.72,596.18,6.977]
[1744503908574,0.30828397,596.71,596.18,6.977]
[1744503910973,0.30828397,596.7,596.18,6.977]
[1744503911274,0.30828397,596.83,596.18,6.977]
[1744503911469,0.30828397,596.69,596.18,6.977]
[1744503911674,0.30828397,596.68,596.18,6.977]
[1744503911874,0.29185939,596.82,596.18,6.977]
[1744503912073,0.30828397,596.81,596.18,6.977]
[1744503913271,0.29185939,596.82,596.18,6.977]
[1744503913481,0.30828396,596.81,596.18,6.977]
[1744503916577,0.30828521,596.8,596.18,6.977]
[1744503916776,0.64230792,596.91,596.18,6.977]
[1744503916777,1.27119983,596.81,596.18,6.977]
[1744503916977,0.29186061,596.79,596.18,6.977]
[1744503917178,0.30828521,596.78,596.18,6.977]
[1744503918077,0.29186061,596.79,596.18,6.977]
[1744503918277,0.30828094,596.78,596.18,6.977]
[1744503920879,0.29186551,596.77,596.18,6.977]
[1744503921073,0.30828094,596.76,596.18,6.977]
[1744503921279,1.56306534,596.77,596.18,6.977]
[1744503921581,0.30828457,596.76,596.18,6.977]
[1744503923579,1.5794844,596.76,596.18,6.977]
[1744503923776,0.30828457,596.75,596.18,6.977]
[1744503926885,0.29186918,596.74,596.18,6.977]
[1744503927086,0.30828457,596.73,596.18,6.977]
[1744503928785,0.30828457,596.72,596.18,6.977]
[1744503928982,0.30828457,596.75,596.18,6.977]
[1744503929287,0.30828457,596.74,596.18,6.977]
[1744503929489,0.30828457,596.75,596.18,6.977]
[1744503929889,0.29186918,596.74,596.18,6.977]
[1744503930089,0.30828457,596.73,596.18,6.977]
[1744503931790,0.30828457,596.75,596.18,6.977]
[1744503931990,0.30828457,596.74,596.18,6.977]
[1744503932190,0.30828457,596.75,596.18,6.977]
[1744503932891,0.29186918,596.74,596.18,6.977]
[1744503933090,0.30828457,596.73,596.18,6.977]
[1744503939390,0.30828742,596.72,596.18,6.977]
[1744503939590,0.30828742,596.73,596.18,6.977]
[1744503940799,1.27119983,596.75,596.18,6.977]
[1744503941000,0.30829186,596.74,596.18,6.977]
[1744503941697,1.57949169,596.74,596.18,6.977]
[1744503941900,0.30829186,596.73,596.18,6.977]
[1744503942100,0.60016226,596.73,596.18,6.977]
[1744503942301,0.30829186,596.72,596.18,6.977]
[1744503943806,0.30829186,596.73,596.18,6.977]
[1744503944106,0.30829186,596.72,596.18,6.977]
[1744503944306,0.30829186,596.73,596.18,6.977]
[1744503944804,0.30829186,596.75,596.18,6.977]
[1744503945000,0.29186918,596.72,596.18,6.977]
[1744503945306,0.30829186,596.71,596.18,6.977]
[1744503946908,0.60018797,596.7,596.18,6.977]
[1744503947101,0.30829186,596.69,596.18,6.977]
[1744503949908,0.30829186,596.84,596.18,6.977]
[1744503950105,0.29189856,596.68,596.18,6.977]
[1744503950410,0.30829186,596.67,596.18,6.977]
[1744503950608,0.30829186,596.84,596.18,6.977]
[1744503951009,0.29188019,596.83,596.18,6.977]
[1744503951210,0.30829186,596.82,596.18,6.977]
[1744503952807,0.30829186,596.85,596.18,6.977]
[1744503953012,0.30829186,596.84,596.18,6.977]
[1744503953313,0.30829186,596.83,596.18,6.977]
[1744503953611,0.30829186,596.82,596.18,6.977]
[1744503953908,0.29187897,596.82,596.18,6.977]
[1744503954208,0.30829186,596.81,596.18,6.977]
[1744503954711,0.30829186,596.8,596.18,6.977]
[1744503954912,0.30829186,596.79,596.18,6.977]
[1744503955113,0.30829186,596.81,596.18,6.977]
[1744503955307,0.30829186,596.8,596.18,6.977]
[1744503955513,0.29187897,596.82,596.18,6.977]
[1744503955708,0.30833149,596.81,596.18,6.977]
[1744503955914,0.30833149,596.8,596.18,6.977]
[1744503956213,0.30833149,596.79,596.18,6.977]
[1744503956407,0.30833149,596.78,596.18,6.977]
[1744503956710,0.30833149,596.77,596.18,6.977]
[1744503956911,0.30833149,596.76,596.18,6.977]
[1744503957111,0.30833149,596.75,596.18,6.977]